{"text_format":"1","workbook":"xlsx","n_sheets":2,"sheets":["Para Birimi Dönüştürmeleri","Dönüştürme Oranları"],"not_rendered":{"charts":0,"images":1,"macros":1,"external_links":0,"defined_names":7,"comments":0,"pivot_tables":0},"unopened":[],"bounds":{"document_bytes":16777216,"sheet_cells":100000,"rows_first":2000,"rows_last":500,"rows_between":2000,"halvings":0,"cell_chars":16384,"cell_head_chars":4096},"cells_cut":0,"cells_raw":0,"read":"whole","date_system":"1900"}

{"sheet":"Para Birimi Dönüştürmeleri","index":0,"n_rows":10,"n_cols":5,"rows_kept":10,"cut":false,"hidden":false,"merged":[]}
[]
[]
[]
[]
[null,null,null,41,6000]
[]
[]
[]
[]
[null,null,null,27,{"$f":"IFERROR(IF(OR(ÇevrilecekParaBirimi=0,SonuçParaBirimi=0),\"\",ÇevrilecekTutar/OFFSET(ParaBirimleri,ÇevrilecekParaBirimi-1,3,1,1)*OFFSET(ParaBirimleri,SonuçParaBirimi-1,3,1,1)),\"\")","v":36420}]

{"sheet":"Dönüştürme Oranları","index":1,"n_rows":59,"n_cols":5,"rows_kept":59,"cut":false,"hidden":false,"merged":[]}
["Dönüştürme Oranları"]
["Bu sayfadaki veriler, MSN Money web sorgusundan alınmıştır. Para Birimi Dönüştürme sayfasındaki Dönüştürme Oranlarını Güncelleştir düğmesi tıklandığında veriler güncelleştirilir."]
[null,null,"Currency Rates Provided by MSN Money"]
[null,null,"Click here to visit MSN Money"]
[]
[null,"Liste Adı","Ad","ABD Doları cinsinden","   ABD Doları başına"]
[null,{"$f":"IF(ISERROR(FIND(\" to US Dollar\",C7)),C7,LEFT(C7,FIND(\" to US Dollar\",C7)-1))","v":"Argentine Peso"},"Argentine Peso to US Dollar",0.22128999999999999,4.5190000000000001]
[null,{"$f":"IF(ISERROR(FIND(\" to US Dollar\",C8)),C8,LEFT(C8,FIND(\" to US Dollar\",C8)-1))","v":"Australian Dollar"},"Australian Dollar to US Dollar",1.0075000000000001,0.99299999999999999]
[null,"Bahraini Dinar","Bahraini Dinar to US Dollar",2.6488,0.378]
[null,"Bolivian Boliviano","Bolivian Boliviano to US Dollar",0.14346999999999999,6.97]
[null,"Brazilian Real","Brazilian Real to US Dollar",0.48055999999999999,2.081]
[null,"British Pound","British Pound to US Dollar",1.554,0.64400000000000002]
[null,"Canadian Dollar","Canadian Dollar to US Dollar",0.97331000000000001,1.0269999999999999]
[null,"Chile Peso","Chile Peso to US Dollar",1.97E-3,506.8]
[null,"Chinese Yuan","Chinese Yuan to US Dollar",0.15715000000000001,6.3630000000000004]
[null,"Colombian Peso","Colombian Peso to US Dollar",5.5999999999999995E-4,1803]
[null,"Czech Koruna","Czech Koruna to US Dollar",4.8030000000000003E-2,20.82]
[null,"Danish Krone","Danish Krone to US Dollar",0.16716,5.9820000000000002]
[null,"Euro","Euro to US Dollar",1.2423999999999999,0.80500000000000005]
[null,"Egyptian Pound*","Egyptian Pound* to US Dollar",0.16497000000000001,6.0620000000000003]
[null,"Hong Kong Dollar","Hong Kong Dollar to US Dollar",0.12887999999999999,7.7590000000000003]
[null,"Hungarian Forint","Hungarian Forint to US Dollar",4.3099999999999996E-3,231.8]
[null,"Indian Rupee","Indian Rupee to US Dollar",1.754E-2,57.03]
[null,"Indonesia Rupiah","Indonesia Rupiah to US Dollar",1.1E-4,9450]
[null,"Japanese Yen","Japanese Yen to US Dollar",1.261E-2,79.31]
[null,"Jordanian Dinar","Jordanian Dinar to US Dollar",1.4104000000000001,0.70899999999999996]
[null,"Kenyan Shilling","Kenyan Shilling to US Dollar",1.187E-2,84.25]
[null,"South Korean Won","South Korean Won to US Dollar",8.7000000000000001E-4,1156]
[null,"Kuwaiti Dinar","Kuwaiti Dinar to US Dollar",3.5568,0.28100000000000003]
[null,"Morocco Dirham","Morocco Dirham to US Dollar",0.11259,8.8819999999999997]
[null,"Malaysian Ringgit","Malaysian Ringgit to US Dollar",0.31269999999999998,3.198]
[null,"Mexican Peso","Mexican Peso to US Dollar",7.3389999999999997E-2,13.625]
[null,"Norwegian Krone","Norwegian Krone to US Dollar",0.16475000000000001,6.07]
[null,"Omani Rial","Omani Rial to US Dollar",2.6000999999999999,0.38500000000000001]
[null,"Peruvian New Sol","Peruvian New Sol to US Dollar",0.37480999999999998,2.6680000000000001]
[null,"Philippine Peso","Philippine Peso to US Dollar",2.3560000000000001E-2,42.45]
[null,"Pakistani Rupee","Pakistani Rupee to US Dollar",1.052E-2,95.05]
[null,"Saudi Riyal","Saudi Riyal to US Dollar",0.26661000000000001,3.7509999999999999]
[null,"Singapore Dollar","Singapore Dollar to US Dollar",0.78186999999999995,1.2789999999999999]
[null,"South African Rand","South African Rand to US Dollar",0.11865000000000001,8.4280000000000008]
[null,"Swedish Krona","Swedish Krona to US Dollar",0.1411,7.0869999999999997]
[null,"Swiss Franc","Swiss Franc to US Dollar",1.0345,0.96699999999999997]
[null,"Taiwan Dollar","Taiwan Dollar to US Dollar",3.3399999999999999E-2,29.937999999999999]
[null,"Thai Baht","Thai Baht to US Dollar",3.1359999999999999E-2,31.89]
[null,"Tunisian Dinar","Tunisian Dinar to US Dollar",0.62468999999999997,1.601]
[null,"Emirati Dirham","Emirati Dirham to US Dollar",0.27221000000000001,3.6739999999999999]
[null,"United States Dollar","United States Dollar",1,1]
[null,"Venezuelan Bolivar","Venezuelan Bolivar to US Dollar",0.23282,4.2949999999999999]
[]
[]
[]
[null,null,"MSN Money",null,"Microsoft Office Update"]
[null,null,"Discover Investor's tools, columns, and more!",null,"Get the latest from Microsoft Office"]
[null,null,"Privacy"]
[null,null,"Legal"]
[null,null,"Advertise"]
[null,null,"MSN Worldwide"]
[null,null,"About our ads"]
[null,null,"© 2012 Microsoft "]